Cogmind - Beta 13 @@@ ROGUE MODE // 2024.07.29 @ 21:16:17 Player: DAFFA Result: Destroyed by S-10 Pest with Light Assault Rifle Performance ------------- Evolutions (0) 0 Regions Visited (1) 200 Robots Destroyed (11) 55 Value Destroyed (283) 283 Prototype IDs (0) 0 Alien Tech Used (0) 0 Bonus (0) 0 TOTAL SCORE: 538 Bonus ------- None Cogmind --------- Core Integrity 0/250 Matter 300/300 Energy 100/100 System Corruption 1% Temperature Cool (0) Movement Core (100) Ox1 Location -10/Materials Parts ------- > --- POWER (1) -------- (None) > --- PROPULSION (2) --- (None) > --- UTILITY (2) ------ Visual Processing Unit > --- WEAPON (2) ------- Mining Claw Mining Claw > --- INVENTORY (5) ---- Small Storage Unit Sensor Array Utility Shielding Assault Rifle Peak State ------------ > --- POWER ------------ Ion Engine > --- PROPULSION ------- Aluminum Leg Aluminum Leg > --- UTILITY ---------- Small Storage Unit Visual Processing Unit > --- WEAPON ----------- Particle Gun Spread Laser > --- INVENTORY -------- Utility Shielding Assault Rifle Grenade Launcher Mining Claw Mining Claw [Rating: 10] Favorites ----------- Power Ion Engine Engine Ion Engine Propulsion Aluminum Leg Leg Aluminum Leg Utility Small Storage Unit Device Sensor Array Storage Small Storage Unit Processor Visual Processing Unit Weapon Particle Gun Energy Gun Particle Gun Ballistic Gun Assault Rifle Slashing Weapon Mining Claw Build | -11 -10 ------- Run | Yrd Mat Slots Evolved . | . . Power . | . . Propulsion . | . . Utility . | . . Weapon . | . . Parts Attached 15 | 6 9 Power 1 | 1 . Engine 1 | 1 . Core . | . . Reactor . | . . Propulsion 5 | 2 3 Treads . | . . Leg 5 | 2 3 Wheel . | . . Hover . | . . Flight . | . . Utility 3 | 1 2 Device 1 | . 1 Storage 1 | 1 . Processor 1 | . 1 Hackware . | . . Protection . | . . Artifact . | . . Weapon 6 | 2 4 Energy Gun 3 | 1 2 Energy Cannon . | . . Ballistic Gun 1 | 1 . Ballistic Cannon . | . . Launcher . | . . Special Weapon . | . . Impact Weapon . | . . Slashing Weapon 2 | . 2 Piercing Weapon . | . . Special Melee Weapon . | . . Unidentified Prototypes . | . . Parts Lost 5 | . 5 Power 1 | . 1 Propulsion 2 | . 2 Utility . | . . Weapon 2 | . 2 Highest Loss Streak 5 | . 5 To Critical Strikes . | . . Average Slot Usage (%) 93 | . 93 Engine 13 | . 13 Leg 27 | . 27 Device 3 | . 3 Storage 10 | . 10 Processor 9 | . 9 Energy Gun 26 | . 26 Naked Turns . | . . Heaviest Build 16 | 14 16 Greatest Support 20 | 20 20 Greatest Overweight (x) 1 | . 1 Average Overweight (x) . | . . Largest Inventory Capacity 8 | 8 8 Average Capacity 7 | 6 7 Most Carried 6 | 3 6 Average Carried 4 | . 4 Final Capacity 8 | 8 5 Final Carried 4 | . 4 Class Distribution -------------------- 100% | Mutant Dominant Class ---------------- Mutant | -10/Materials Resources | -11 -10 ----------- Run | Yrd Mat Matter Collected 333 | 237 96 Remotely . | . . Salvage Created 238 | . 238 Parts 18 | . 18 Haulers Intercepted . | . . Recyclers Shooed . | . . Parts Field Recycled . | . . Retrieved Matter . | . . Parts Self-Destructed . | . . Prevented . | . . Kills | -11 -10 ------- Run | Yrd Mat Combat Hostiles Destroyed 10 | . 10 Melee 1 | . 1 Guns 9 | . 9 Classes Destroyed 3 | . 3 Watcher 1 | . 1 Swarmer 4 | . 4 Grunt 6 | . 6 Best Kill Streak 3 | . 3 Combat Bots Only 3 | . 3 Max Kills in Single Turn 2 | . 2 Gunslinging . | . . Exploded . | . . Melee 1 | . 1 Uniques/NPCs Destroyed . | . . Combat | -11 -10 -------- Run | Yrd Mat Hostile Shots Fired 106 | . 106 Missed 21 | . 21 Damage Taken 785 | . 785 Core 255 | . 255 Absorbed by Shields . | . . Core Remaining (%) 100 | 100 . Volleys Fired 34 | . 34 Largest 2 | . 2 Hottest 130 | . 130 Shots Fired 50 | . 50 Gun 50 | . 50 Cannon . | . . Launcher . | . . Special . | . . Kinetic . | . . Thermal 50 | . 50 Explosive . | . . Electromagnetic . | . . Robot Hit Streak 10 | . 10 Robot Miss Streak 6 | . 6 Penetration Max . | . . Secondary Targets . | . . Shots Hit Robots 39 | . 39 Core Hits 27 | . 27 Critical Kills . | . . Critical Parts Destroyed . | . . Critical Strikes 3 | . 3 Burn 3 | . 3 Melee Attacks 10 | . 10 Impact . | . . Slashing 10 | . 10 Piercing . | . . Sneak Attacks . | . . Combat Hostiles . | . . Follow-up Attacks . | . . Damage Inflicted 654 | . 654 Guns 529 | . 529 Cannons . | . . Explosions . | . . Melee 121 | . 121 Ramming 4 | . 4 Kinetic . | . . Thermal 529 | . 529 Explosive . | . . Electromagnetic . | . . Impact . | . . Slashing 121 | . 121 Piercing . | . . Highest Corruption 1 | . 1 Average Corruption 1 | . 1 Corruption Purged . | . . Corruption Blocked . | . . Effects 4 | . 4 Message Errors 2 | . 2 Heat Flow Errors 1 | . 1 Data Loss (minor) 1 | . 1 Overload Shots . | . . Overflow Damage 14 | . 14 Projectiles . | . . Explosions . | . . Melee 14 | . 14 Knockbacks . | . . Impact . | . . Kinetic . | . . Secondary . | . . Self-Inflicted Damage . | . . Shots . | . . Rammed . | . . Targets Rammed 1 | . 1 Kicked 1 | . 1 Crushed . | . . Highest Temperature 389 | . 389 Average Temperature 138 | . 138 Received Heat Transfer 207 | . 207 Effects 3 | . 3 Shutdowns 1 | . 1 Interference 2 | . 2 Siege Activations . | . . Robots Corrupted . | . . Combat Hostiles . | . . Parts Fried . | . . Impact Corruptions . | . . Robots Melted . | . . Combat Hostiles . | . . Parts Melted . | . . Heat Transferred 1191 | . 1191 Parts Sabotaged . | . . Parts Stolen . | . . Parts Stripped . | . . Power Chain Reactions . | . . Alert | -11 -10 ------- Run | Yrd Mat Peak Influence 162 | . 162 Initial . | . . Average 76 | . 81 Maximum Alert Level . | . . Low Security (%) 100 | 100 100 Level 1 . | . . Level 2 . | . . Level 3 . | . . Level 4 . | . . Level 5 . | . . High Security . | . . Max Security . | . . Squads Dispatched 1 | . 1 Investigation 1 | . 1 Extermination . | . . Reinforcement . | . . Assault . | . . Garrison . | . . Intercept . | . . Searches Triggered . | . . Construction Impeded . | . . Haulers Reinforced . | . . Active Scanning Responses . | . . Cargo Convoy Interrupts . | . . Stealth | -11 -10 --------- Run | Yrd Mat Distress Signals 1 | . 1 Communications Jammed . | . . Distress Signals . | . . Times Spotted 20 | . 20 Peak Tracking Total 3 | . 3 Tactical Retreats 2 | . 2 Traps | -11 -10 ------- Run | Yrd Mat Traps Triggered 2 | . 2 Indirectly . | . . Trap Hack Attempts . | . . Triggered . | . . Disarmed . | . . Reprogrammed . | . . Reused . | . . Traps Extracted . | . . Installed . | . . Triggered . | . . Machines | -11 -10 ---------- Run | Yrd Mat Machines Disabled 1 | . 1 Max in Single Turn 1 | . 1 Machines Repaired . | . . Machines Dismantled . | . . Machines Sabotaged . | . . Overloaded Fab Kills . | . . Hacking | -11 -10 --------- Run | Yrd Mat Machines Accessed 2 | . 2 Terminals 2 | . 2 Fabricators . | . . Repair Stations . | . . Recycling Units . | . . Scanalyzers . | . . Garrison Access . | . . Total Hacks 4 | . 4 Successful 2 | . 2 Failed 2 | . 2 Catastrophic . | . . Database Lockouts . | . . Manual 1 | . 1 Terminals 4 | . 4 Fabricators . | . . Repair Stations . | . . Recycling Units . | . . Scanalyzers . | . . Garrison Access . | . . Terminal Hacks 2 | . 2 Branch Access Points 1 | . 1 Hauler Manifests 1 | . 1 Fabricator Hacks . | . . Repair Station Hacks . | . . Recycling Unit Hacks . | . . Scanalyzer . | . . Garrison Access Hacks . | . . Unauthorized Hacks . | . . Terminals . | . . Fabricators . | . . Repair Stations . | . . Recycling Units . | . . Scanalyzers . | . . Garrison Access . | . . Data Cores Recovered . | . . Used . | . . Hacking Detections . | . . Full Trace Events . | . . Feedback Events . | . . Feedback Blocked . | . . Robot Schematics Acquired . | . . Robots Built . | . . Authchips . | . . Time . | . . Total Robot Build Rating . | . . Part Schematics Acquired . | . . Parts Built . | . . Authchips . | . . Time . | . . Total Part Build Rating . | . . Parts Repaired . | . . Time . | . . Parts Recycled . | . . Recycled Matter . | . . Retrieved Matter . | . . Retrieved Components . | . . Parts Scanalyzed . | . . Part Schematics Acquired . | . . Parts Damaged . | . . Bothacking | -11 -10 ------------ Run | Yrd Mat Used RIF Installer . | . . Robots Hacked . | . . Non-combat . | . . Combat . | . . Robot Hacks Applied . | . . Relay Couplers Released . | . . Fabnet Peak Effective % . | . . Robots Rewired . | . . Allies Hacked . | . . Hacks Repelled . | . . Allies | -11 -10 -------- Run | Yrd Mat Total Allies . | . . Largest Group . | . . Highest-Rated Group . | . . Highest-Rated Ally . | . . Total Orders . | . . Ally Attacks . | . . Total Damage . | . . Kills . | . . Allies Corrupted . | . . Allies Melted . | . . Intel | -11 -10 ------- Run | Yrd Mat Robot Analysis Total . | . . Derelict Logs Recovered . | . . Drone Launches . | . . Drone Recoveries . | . . Exploration | -11 -10 ------------- Run | Yrd Mat Turns Passed 874 | 60 814 Spaces Moved 551 | 39 512 Core 7 | 6 1 Treads . | . . Legs 544 | 33 511 Wheels . | . . Hover . | . . Flight . | . . Fastest Speed 50 | 50 100 Average Speed 119 | 109 119 Slowest Speed 120 | 120 120 Overloaded Moves . | . . Propulsion Burnouts . | . . Robots Hopped . | . . Cave-ins Triggered . | . . Exploration Rate (%) 29 | 3 56 Regions Visited 1 Branch Regions . Pre-discovered Areas . | . . Known Exits Taken . | . . Unknown Exits Taken 1 | 1 . Scrap Searched . | . . Spaces Dug . | . . Terrain Destroyed . | . . Melee . | . . Projectile . | . . AOE . | . . Terrain Rammed . | . . Walls Destroyed . | . . Machines Disabled . | . . Actions | -11 -10 --------- Run | Yrd Mat Total 699 | 56 643 Wait 64 | 6 58 Move 550 | 38 512 Hop . | . . Pick Up 18 | 6 12 Fast Attach . | . . Attach 10 | 6 4 Detach 1 | . 1 Swap 5 | . 5 Drop 6 | . 6 Fire 34 | . 34 Melee 10 | . 10 Ram . | . . Kick 1 | . 1 Crush . | . . Escape Stasis . | . . Rewire . | . . Trap . | . . Miscellaneous . | . . Route ------- -11/Scrapyard -10/Materials (discovered 4 exits: [*Mat x2] / Min x2) History --------- Turn | Location | Event 3 | -11/Scrapyard | Discovered new exit (range 15) 61 | -11/Scrapyard | Entered Materials 268 | -10/Materials | Discovered new exit (range 16) 305 | -10/Materials | Build established: Mutant 389 | -10/Materials | Discovered new exit (range 14) 425 | -10/Materials | Identified exit to Mines 843 | -10/Materials | Core integrity fell below 50% 867 | -10/Materials | Core integrity fell below 20% 875 | -10/Materials | Destroyed by S-10 Pest with Light Assault Rifle Last Messages --------------- 00759_ G-47 Trooper destroyed. 00760_ K-01 Serf collects debris. 00764_ Acquired 16 matter. 00765_ K-01 Serf collects debris. 00766_ Dropped Aluminum Leg. 00768_ Dropped Sml. Storage Unit. 00768_ K-01 Serf collects debris. 00772_ Acquired Sml. Storage Unit. 00773_ K-01 Serf collects debris. 00776_ Acquired 12 matter. 00776_ K-01 Serf collects debris. 00808_ System corrupted: Component data lost. 00828_ Spread Laser destroyed. 00841_ Particle Gun destroyed. 00849_ Destroyed Flight Unit. 00860_ Aluminum Leg destroyed. 00863_ Ion Engine destroyed. 00871_ Destroyed Lgt. Ion Engine. 00871_ S-10 Pest destroyed. 00872_ Acquired 5 matter. Map ----- +----------------------------------------------------+ | ?????????????????????????????# """ """ """ #?? | | ??????????????????????????# +?? | | ??????????????????????????# #?? | | ??????????????????????????# #?? | | ??????????????????????????# #?? | | ??????????????????????????# ###+####### #?? | | +???????????????########### #= = ## #?? | | #???????????????# """"" + # [[""" ## ### | | #???????????????# """"" # # """ ## # " | | #???????????????# """"" # # """ ## # " | | #???????????????# # # ## # " | | #???????????????# # # ## # | | #???????????????# ! ! # # !! + + | | ###########?????########### # !! ## # | | # #?????########### # !// #### # | | # ! #?????# # ###/######??# # | | # = #?????# # #?? ????????# ### | | # % #?????# # #?? ????????# #?# | | ##+####+###?????# # #?? ????????# #?# | | ####### # #?? ??#######+### | | + # ####### ## | | ####### # # !!!# ## | | ###########?????# / # !!!# # | | ##???####????????######+#### # !!!# """ # | | #????# !##????????????#%#??# # # """ + | | #????# !#????????????#@#??# #! # """ # | | #????# !#????????????# #??# # # """ # | | ###### !#??????????###/#### + # """ ## | | !#??????????#!%s # # """ # ## | | ! [ !##??######??# # # """ ########### | | =%==%=####???# #??# # + """ #?????????# | | ####%#??????# #### # # #?????????# | | #??#[#??????# + + # # = #?????????# | | #??#!#??????# # # # #######?????????# | | #??# #??????# # #####+## #???????????????# | | #??# #??????# + #???????????????# | | < #?## ######## # #???????????????# | | #?# # # # #???????????????# | | ###?# + # # #####+## < #???????????????? | | ????# # ###### # # #???????????????? | | ????##### "" #??# + #####???????????????? | | ????????# T" ####+#### """" #???????????????????? | | ????????# "" ## # """" #???????????????????? | | ????????# ## # """" #???????????????????? | | ????????######## # #???????????????????? | | ???????????????# ########???????????????????? | | ???????????????########??????????????????????????? | | | | | | | +----------------------------------------------------+ Best States ------------- Heat Dissipation 25 Energy Generation 10 Energy Capacity 250 Matter Stores 300 Matter Capacity 300 Sight Range 18 Robot Scan Range 14 Terrain Scan Density 10 Evasion (%) 55 Item Schematics ----------------- None Robot Schematics ------------------ None Fabricated ------------ Nothing Alien Tech Used ----------------- None Achievements -------------- None Challenges ------------ None Game ------ Seed SpacefoldVisualSpecial Manual? 0 Play Time 00:13:10 Cumulative 7.4 hours Start 2024.07.29 @ 21:01:35 End 2024.07.29 @ 21:16:17 Sessions 1 Manual Loads 0 Difficulty Rogue Special Mode None Game No. 10 Rogue 6 Adventurer 4 Explorer 0 Win Type - Total 0 Types 0/0/0/0/0/0/0/0/0 Lore% 2 Gallery% 13 Achievement% 10 Wizard Run 0 Options --------- Layout 1 ASCII 0 Keyboard 0 Movement Mouse Keybinds 0 Fullscreen 1 Font 24/Smallcaps Map View 50x35 Zoom Use 0% Tactical HUD 1 Map Filters NONE Filters NONE Steam 1 RUN: e30ec346-955b-4563-83e0-9a1043020d7a